Workbook

Sheet FD vs Debt Fund Volatility
A1: Comparison between a lumpsum investment in a Fixed deposit & a debt mutual fund | J1: Fixed Deposit | N1: Debt Fund | P1: Post-tax Returns | Z1: 0 | AA1: =ROUND(MAX(F15:F23),2) -> 0.06 | AC1: =(PRODUCT(AB4:AB53))^(1/tenure)-1 -> 0.06802068788 | AD1: =rated-AD2 -> 0.04365338966 | AE1: =rated+AD2 -> 0.05634661034 | AF1: =rated -> 0.05 | AG1: =volatility -> 0.02 | AH1: =AG1-AG2 -> 0.01666666667 | AI1: =AG1+AG2 -> 0.02333333333 | AK1: Trial | AL1: Fdfy | AM1: DebtNOI | AN1: DebtWI
A2: fill only cells in green | I2: Year | J2: Sum at | K2: Sum at | L2: Debt fund | M2: =IF(Table134[[#This Row],[Column1]]=tenure,Table134[[#This Row],[Column3]],"") ->  | N2: Sum at | O2: Sum at | R2: Debt fund | S2: Debt fund | T2: Year | U2: FD | V2: Sum at | W2: Sum at | Z2: 0.1 | AA2: =ROUND(MIN(F15:F23),2)-1% -> 0.05 | AC2: =STDEV(AC4:AC53) -> 0.02006974411 | AD2: =AC2/SQRT(AC3) -> 0.006346610345 | AE2: SE | AF2: =1/SQRT(AC3-1) -> 0.3333333333 | AG2: =AF2/100 -> 0.003333333333 | AK2: 1 | AL2: 1 | AM2: 0.001905277953 | AN2: 0.1052927518 | AP2: =MAX(AM2:AN2) -> 0.1052927518 | AQ2: =IF(MAX(AM2:AN2)>fdfy,1,0) -> 1 | AR2: =IF(MAX(AM2:AN2)>fdcash,1,0) -> 1 | AS2: =IF(AQ2+AR2=2,1,0) -> 1
A3: Lump sum investment | F3: 1000000 | J3: year start | K3: year end | L3: Return | M3: =IF(Table134[[#This Row],[Column1]]=tenure,Table134[[#This Row],[Column3]],"") ->  | N3: year start | O3: year end | Q3: FD | R3: without indexation | S3: with indexation | U3: Tax deferred | V3: year start | W3: year end | Z3: 0.2 | AC3: =COUNT(AC4:AC53) -> 10 | AD3: =EXP(STDEV(AD4:AD53)+AVERAGE(AD4:AD53))-1 -> 0.08839380278 | AE3: GSD | AF3: =AC1*(1-AD3) -> 0.06200808061 | AG3: =AC1*(1+AD3) -> 0.07403329514 | AK3: 2 | AL3: 0 | AM3: 0.04226491599 | AN3: 0.09801423309 | AP3: =MAX(AM3:AN3) -> 0.09801423309 | AQ3: 1 | AR3: 1 | AS3: =IF(AQ3+AR3=2,1,0) -> 1
A4: Duration of investment (years) | F4: 10 | I4: 1 | J4: =F3 -> 1000000 | K4: =J4*((1+rate*(1-IF(tax=10%,10.3%,IF(tax=20%,20.6%,IF(tax=30%,30.9%)))))) -> 1055280 | L4: =IF(I4<=tenure,(rated+SQRT(-2*LN(RAND()))*COS(2*PI()*RAND())*volatility),"") -> 0.05207900183 | M4: =IF(Table134[[#This Row],[Column1]]=tenure,Table134[[#This Row],[Column3]],"") ->  | N4: =F3 -> 1000000 | O4: =N4*((1+Table134[[#This Row],[Column13]])) -> 1052079.002 | P4: =IF(Table134[[#This Row],[Column1]]=tenure,IF(corpnoindex<corpindex,corpnoindex,corpindex),NA()) ->  | Q4: 0.05528 | R4: 0.05111303824 | S4: 0.0568804156 | T4: 1 | U4: 0.05697744 | V4: =F3 -> 1000000 | W4: =V4*((1+rate*(1-10.3%))) -> 1071760 | X4: =IF(Table134[[#This Row],[Column1]]=tenure,fdcashposttax,NA()) ->  | Y4: =IF(I4<=tenure,Table134[[#This Row],[Column13]],"") -> 0.05207900183 | Z4: 0.3 | AB4: =IF(Table134[[#This Row],[Column15]]="",1,(1+Table134[[#This Row],[Column15]])) -> 1.052079002 | AC4: =IF(Table134[[#This Row],[Column15]]="","",(1+Table134[[#This Row],[Column15]])) -> 1.052079002 | AD4: =IF(Table134[[#This Row],[Column15]]="","",LN(AC4)) -> 0.05076820829 | AE4: =IF(AC1>AD1,IF(AC1<AE1,1,0),0) -> 0 | AK4: 3 | AL4: 1 | AM4: 0.01021663227 | AN4: 0.1312652193 | AP4: 0.1312652193 | AQ4: 1 | AR4: 1 | AS4: 1
A5: Interest rate of fixed deposit | F5: 0.08 | I5: =IF(I4<tenure,I4+1,"") -> 2 | J5: =IF(I5<=tenure,K4,"") -> 1055280 | K5: =IF(I5<=tenure,J5*((1+rate*(1-IF(tax=10%,10.3%,IF(tax=20%,20.6%,IF(tax=30%,30.9%)))))),NA()) -> 1113615.878 | L5: 0.02808173048 | M5: =IF(Table134[[#This Row],[Column1]]=tenure,Table134[[#This Row],[Column3]],"") ->  | N5: =IF(I5<=tenure,O4,"") -> 1052079.002 | O5: =N5*((1+Table134[[#This Row],[Column13]])) -> 1081623.201 | P5: =IF(Table134[[#This Row],[Column1]]=tenure,IF(corpnoindex<corpindex,corpnoindex,corpindex),NA()) ->  | Q5: 0.05528 | R5: 0.07153377614 | S5: 0.04883026244 | T5: 2 | U5: 0.05737579937 | V5: =IF(I5<=tenure,W4,"") -> 1071760 | W5: =IF(I5<=tenure,V5*((1+rate*(1-10.3%))),NA()) -> 1148669.498 | X5: =IF(Table134[[#This Row],[Column1]]=tenure,fdcashposttax,NA()) ->  | Y5: =IF(I5<=tenure,Table134[[#This Row],[Column13]],"") -> 0.02808173048 | AB5: =IF(Table134[[#This Row],[Column15]]="",1,(1+Table134[[#This Row],[Column15]])) -> 1.02808173 | AC5: =IF(Table134[[#This Row],[Column15]]="","",(1+Table134[[#This Row],[Column15]])) -> 1.02808173 | AD5: =IF(Table134[[#This Row],[Column15]]="","",LN(AC5)) -> 0.02769466823 | AE5: =IF(AC2>AH1,IF(AC2<AI1,1,0),0) -> 1 | AK5: 4 | AL5: 0 | AM5: 0.09452670342 | AN5: -0.005594079222 | AP5: 0.09452670342 | AQ5: 1 | AR5: 1 | AS5: 1
A6: approx. expected Interest rate (CAGR) of debt fund (eg. Income fund) | F6: 0.05 | G6: conservative estimate based on funds history | I6: 3 | J6: 1113615.878 | K6: 1175176.564 | L6: 0.09492812368 | M6: =IF(Table134[[#This Row],[Column1]]=tenure,Table134[[#This Row],[Column3]],"") ->  | N6: 1081623.201 | O6: =N6*((1+Table134[[#This Row],[Column13]])) -> 1184299.662 | P6: =IF(Table134[[#This Row],[Column1]]=tenure,IF(corpnoindex<corpindex,corpnoindex,corpindex),NA()) ->  | Q6: 0.05528 | R6: 0.04589354133 | S6: 0.06360669909 | T6: 3 | U6: 0.05776312096 | V6: 1148669.498 | W6: 1231098.021 | X6: =IF(Table134[[#This Row],[Column1]]=tenure,fdcashposttax,NA()) ->  | Y6: =IF(I6<=tenure,Table134[[#This Row],[Column13]],"") -> 0.09492812368 | AB6: =IF(Table134[[#This Row],[Column15]]="",1,(1+Table134[[#This Row],[Column15]])) -> 1.094928124 | AC6: =IF(Table134[[#This Row],[Column15]]="","",(1+Table134[[#This Row],[Column15]])) -> 1.094928124 | AD6: =IF(Table134[[#This Row],[Column15]]="","",LN(AC6)) -> 0.09068872064 | AE6: =IF(AC1>AD1,IF(AC1<AE1,1,0),0)+IF(AC2>AH1,IF(AC2<AI1,1,0),0) -> 1 | AK6: 5 | AL6: 1 | AM6: 0.00199937884 | AN6: 0.07580360464 | AP6: 0.07580360464 | AQ6: 1 | AR6: 1 | AS6: 1
A7: Approx. volatility (standard deviation) in debt fund returns | F7: 0.02 | G7: get data from fund card of VR online | I7: 4 | J7: 1175176.564 | K7: 1240140.325 | L7: 0.05158343923 | M7: =IF(Table134[[#This Row],[Column1]]=tenure,Table134[[#This Row],[Column3]],"") ->  | N7: 1184299.662 | O7: =N7*((1+Table134[[#This Row],[Column13]])) -> 1245389.911 | P7: =IF(Table134[[#This Row],[Column1]]=tenure,IF(corpnoindex<corpindex,corpnoindex,corpindex),NA()) ->  | Q7: 0.05528 | R7: 0.05733438351 | S7: 0.05630413149 | T7: 4 | U7: 0.05813948199 | V7: 1231098.021 | W7: 1319441.615 | X7: =IF(Table134[[#This Row],[Column1]]=tenure,fdcashposttax,NA()) ->  | Y7: =IF(I7<=tenure,Table134[[#This Row],[Column13]],"") -> 0.05158343923 | AB7: =IF(Table134[[#This Row],[Column15]]="",1,(1+Table134[[#This Row],[Column15]])) -> 1.051583439 | AC7: =IF(Table134[[#This Row],[Column15]]="","",(1+Table134[[#This Row],[Column15]])) -> 1.051583439 | AD7: =IF(Table134[[#This Row],[Column15]]="","",LN(AC7)) -> 0.05029706559 | AK7: 6 | AL7: 0 | AM7: 0.08050512226 | AN7: 0.007533249356 | AP7: 0.08050512226 | AQ7: 1 | AR7: 1 | AS7: 1
A8: No of trials you will like to run the simulation for (max. 500) | F8: 500 | G8: More than 500 is better. However 500 is | I8: 5 | J8: 1240140.325 | K8: 1308695.282 | L8: 0.0743904986 | M8: =IF(Table134[[#This Row],[Column1]]=tenure,Table134[[#This Row],[Column3]],"") ->  | N8: 1245389.911 | O8: =N8*((1+Table134[[#This Row],[Column13]])) -> 1338035.088 | P8: =IF(Table134[[#This Row],[Column1]]=tenure,IF(corpnoindex<corpindex,corpnoindex,corpindex),NA()) ->  | Q8: 0.05528 | R8: 0.06039878211 | S8: 0.0549840157 | T8: 5 | U8: 0.05850498458 | V8: 1319441.615 | W8: 1414124.745 | X8: =IF(Table134[[#This Row],[Column1]]=tenure,fdcashposttax,NA()) ->  | Y8: =IF(I8<=tenure,Table134[[#This Row],[Column13]],"") -> 0.0743904986 | AB8: =IF(Table134[[#This Row],[Column15]]="",1,(1+Table134[[#This Row],[Column15]])) -> 1.074390499 | AC8: =IF(Table134[[#This Row],[Column15]]="","",(1+Table134[[#This Row],[Column15]])) -> 1.074390499 | AD8: =IF(Table134[[#This Row],[Column15]]="","",LN(AC8)) -> 0.07175352274 | AK8: 7 | AL8: 0 | AM8: -0.0146122337 | AN8: 0.05680809019 | AP8: 0.05680809019 | AQ8: 1 | AR8: 0 | AS8: 0
A9: Choose applicable tax slab for Fixed Deposit | F9: 0.3 | G9: enough to get an idea | I9: 6 | J9: 1308695.282 | K9: 1381039.957 | L9: 0.07541876091 | M9: =IF(Table134[[#This Row],[Column1]]=tenure,Table134[[#This Row],[Column3]],"") ->  | N9: 1338035.088 | O9: =N9*((1+Table134[[#This Row],[Column13]])) -> 1438948.036 | P9: =IF(Table134[[#This Row],[Column1]]=tenure,IF(corpnoindex<corpindex,corpnoindex,corpindex),NA()) ->  | Q9: 0.05528 | R9: 0.05240691558 | S9: 0.05988523518 | T9: 6 | U9: 0.0588597534 | V9: 1414124.745 | W9: 1515602.337 | X9: =IF(Table134[[#This Row],[Column1]]=tenure,fdcashposttax,NA()) ->  | Y9: =IF(I9<=tenure,Table134[[#This Row],[Column13]],"") -> 0.07541876091 | AB9: =IF(Table134[[#This Row],[Column15]]="",1,(1+Table134[[#This Row],[Column15]])) -> 1.075418761 | AC9: =IF(Table134[[#This Row],[Column15]]="","",(1+Table134[[#This Row],[Column15]])) -> 1.075418761 | AD9: =IF(Table134[[#This Row],[Column15]]="","",LN(AC9)) -> 0.07271013076 | AK9: 8 | AL9: 0 | AM9: 0.006239857537 | AN9: 0.03806283164 | AP9: 0.03806283164 | AQ9: 0 | AR9: 0 | AS9: 0
A10: Debt Fund: Taxation is deferred until redemption and is either | I10: 7 | J10: 1381039.957 | K10: 1457383.846 | L10: 0.0689698364 | M10: =IF(Table134[[#This Row],[Column1]]=tenure,Table134[[#This Row],[Column3]],"") ->  | N10: 1438948.036 | O10: =N10*((1+Table134[[#This Row],[Column13]])) -> 1538192.047 | P10: =IF(Table134[[#This Row],[Column1]]=tenure,IF(corpnoindex<corpindex,corpnoindex,corpindex),NA()) ->  | Q10: 0.05528 | R10: 0.05735678755 | S10: 0.06485794376 | T10: 7 | U10: 0.05920393343 | V10: 1515602.337 | W10: 1624361.96 | X10: =IF(Table134[[#This Row],[Column1]]=tenure,fdcashposttax,NA()) ->  | Y10: =IF(I10<=tenure,Table134[[#This Row],[Column13]],"") -> 0.0689698364 | AB10: =IF(Table134[[#This Row],[Column15]]="",1,(1+Table134[[#This Row],[Column15]])) -> 1.068969836 | AC10: =IF(Table134[[#This Row],[Column15]]="","",(1+Table134[[#This Row],[Column15]])) -> 1.068969836 | AD10: =IF(Table134[[#This Row],[Column15]]="","",LN(AC10)) -> 0.06669541499 | AK10: 9 | AL10: 1 | AM10: 0.1639850074 | AN10: -0.1304888317 | AP10: 0.1639850074 | AQ10: 1 | AR10: 1 | AS10: 1
A11: 10% or 20% with indexation (based on cost inflation index) | I11: 8 | J11: 1457383.846 | K11: 1537948.025 | L11: 0.0874785402 | M11: =IF(Table134[[#This Row],[Column1]]=tenure,Table134[[#This Row],[Column3]],"") ->  | N11: 1538192.047 | O11: =N11*((1+Table134[[#This Row],[Column13]])) -> 1672750.842 | P11: =IF(Table134[[#This Row],[Column1]]=tenure,IF(corpnoindex<corpindex,corpnoindex,corpindex),NA()) ->  | Q11: 0.05528 | R11: 0.05412915237 | S11: 0.05340151706 | T11: 8 | U11: 0.05953768774 | V11: 1624361.96 | W11: 1740926.175 | X11: =IF(Table134[[#This Row],[Column1]]=tenure,fdcashposttax,NA()) ->  | Y11: =IF(I11<=tenure,Table134[[#This Row],[Column13]],"") -> 0.0874785402 | AB11: =IF(Table134[[#This Row],[Column15]]="",1,(1+Table134[[#This Row],[Column15]])) -> 1.08747854 | AC11: =IF(Table134[[#This Row],[Column15]]="","",(1+Table134[[#This Row],[Column15]])) -> 1.08747854 | AD11: =IF(Table134[[#This Row],[Column15]]="","",LN(AC11)) -> 0.08386175063 | AK11: 10 | AL11: 1 | AM11: 0.1422220124 | AN11: 0.1244613229 | AP11: 0.1422220124 | AQ11: 1 | AR11: 1 | AS11: 1
A12: Rate of annual increase in cost inflation index (5% is good no) | F12: 0.05 | I12: 9 | J12: 1537948.025 | K12: 1622965.792 | L12: 0.06392472178 | M12: =IF(Table134[[#This Row],[Column1]]=tenure,Table134[[#This Row],[Column3]],"") ->  | N12: 1672750.842 | O12: =N12*((1+Table134[[#This Row],[Column13]])) -> 1779680.974 | P12: =IF(Table134[[#This Row],[Column1]]=tenure,IF(corpnoindex<corpindex,corpnoindex,corpindex),NA()) ->  | Q12: 0.05528 | R12: 0.05936773099 | S12: 0.05933821581 | T12: 9 | U12: 0.05986119531 | V12: 1740926.175 | W12: 1865855.037 | X12: =IF(Table134[[#This Row],[Column1]]=tenure,fdcashposttax,NA()) ->  | Y12: =IF(I12<=tenure,Table134[[#This Row],[Column13]],"") -> 0.06392472178 | AB12: =IF(Table134[[#This Row],[Column15]]="",1,(1+Table134[[#This Row],[Column15]])) -> 1.063924722 | AC12: =IF(Table134[[#This Row],[Column15]]="","",(1+Table134[[#This Row],[Column15]])) -> 1.063924722 | AD12: =IF(Table134[[#This Row],[Column15]]="","",LN(AC12)) -> 0.06196463821 | AK12: 11 | AL12: 1 | AM12: 0.08283926371 | AN12: 0.01604799394 | AP12: 0.08283926371 | AQ12: 1 | AR12: 1 | AS12: 1
A13: FD Taxation method: Mercantile basis. Tax paid each FY | I13: 10 | J13: 1622965.792 | K13: 1712683.341 | L13: 0.08506185015 | M13: =IF(Table134[[#This Row],[Column1]]=tenure,Table134[[#This Row],[Column3]],"") -> 1931063.93 | N13: 1779680.974 | O13: =N13*((1+Table134[[#This Row],[Column13]])) -> 1931063.93 | P13: =IF(Table134[[#This Row],[Column1]]=tenure,IF(corpnoindex<corpindex,corpnoindex,corpindex),NA()) -> 1835164.345 | Q13: 0.05528 | R13: 0.05406678533 | S13: 0.05779444957 | T13: 10 | U13: 0.06017464897 | V13: 1865855.037 | W13: 1999748.794 | X13: =IF(Table134[[#This Row],[Column1]]=tenure,fdcashposttax,NA()) -> 1793800.543 | Y13: =IF(I13<=tenure,Table134[[#This Row],[Column13]],"") -> 0.08506185015 | AB13: =IF(Table134[[#This Row],[Column15]]="",1,(1+Table134[[#This Row],[Column15]])) -> 1.08506185 | AC13: =IF(Table134[[#This Row],[Column15]]="","",(1+Table134[[#This Row],[Column15]])) -> 1.08506185 | AD13: =IF(Table134[[#This Row],[Column15]]="","",LN(AC13)) -> 0.08163699011 | AK13: 12 | AL13: 0 | AM13: 0.1275682347 | AN13: -0.03176815837 | AP13: 0.1275682347 | AQ13: 1 | AR13: 1 | AS13: 1
E14: Post-tax Returns | M14: =IF(Table134[[#This Row],[Column1]]=tenure,Table134[[#This Row],[Column3]],"") ->  | O14: =N14*((1+Table134[[#This Row],[Column13]])) ->  | P14: =IF(Table134[[#This Row],[Column1]]=tenure,IF(corpnoindex<corpindex,corpnoindex,corpindex),NA()) ->  | Q14: 0.05528 | R14: 0.05767561374 | S14: 0.05961950688 | T14: 11 | U14: 0.0604782534 | X14: =IF(Table134[[#This Row],[Column1]]=tenure,fdcashposttax,NA()) ->  | Y14: =IF(I14<=tenure,Table134[[#This Row],[Column13]],"") ->  | AB14: =IF(Table134[[#This Row],[Column15]]="",1,(1+Table134[[#This Row],[Column15]])) -> 1 | AC14: =IF(Table134[[#This Row],[Column15]]="","",(1+Table134[[#This Row],[Column15]])) ->  | AD14: =IF(Table134[[#This Row],[Column15]]="","",LN(AC14)) ->  | AK14: 13 | AL14: 0 | AM14: 0.05901548381 | AN14: -0.033390044 | AP14: 0.05901548381 | AQ14: 1 | AR14: 0 | AS14: 0
A15: Corpus from fixed deposit (post-tax) | D15: =sum*((1+rate*(1-IF(tax=10%,10.3%,IF(tax=20%,20.6%,IF(tax=30%,30.9%))))))^tenure -> 1712683.341 | F15: =(D15/F3)^(1/tenure)-1 -> 0.05528 | M15: =IF(Table134[[#This Row],[Column1]]=tenure,Table134[[#This Row],[Column3]],"") ->  | O15: =N15*((1+Table134[[#This Row],[Column13]])) ->  | P15: =IF(Table134[[#This Row],[Column1]]=tenure,IF(corpnoindex<corpindex,corpnoindex,corpindex),NA()) ->  | Q15: 0.05528 | R15: 0.05779705213 | S15: 0.05468525758 | T15: 12 | U15: 0.06077222331 | X15: =IF(Table134[[#This Row],[Column1]]=tenure,fdcashposttax,NA()) ->  | Y15: =IF(I15<=tenure,Table134[[#This Row],[Column13]],"") ->  | AB15: =IF(Table134[[#This Row],[Column15]]="",1,(1+Table134[[#This Row],[Column15]])) -> 1 | AC15: =IF(Table134[[#This Row],[Column15]]="","",(1+Table134[[#This Row],[Column15]])) ->  | AD15: =IF(Table134[[#This Row],[Column15]]="","",LN(AC15)) ->  | AK15: 14 | AL15: 1 | AM15: 0.01489643923 | AN15: 0.1250157216 | AP15: 0.1250157216 | AQ15: 1 | AR15: 1 | AS15: 1
A16: Corpus from debt fund (pre-tax) | D16: =MAX(M4:M53) -> 1931063.93 | M16: =IF(Table134[[#This Row],[Column1]]=tenure,Table134[[#This Row],[Column3]],"") ->  | O16: =N16*((1+Table134[[#This Row],[Column13]])) ->  | P16: =IF(Table134[[#This Row],[Column1]]=tenure,IF(corpnoindex<corpindex,corpnoindex,corpindex),NA()) ->  | Q16: 0.05528 | R16: 0.05611580596 | S16: 0.05878982771 | T16: 13 | U16: 0.06105678164 | X16: =IF(Table134[[#This Row],[Column1]]=tenure,fdcashposttax,NA()) ->  | Y16: =IF(I16<=tenure,Table134[[#This Row],[Column13]],"") ->  | AB16: =IF(Table134[[#This Row],[Column15]]="",1,(1+Table134[[#This Row],[Column15]])) -> 1 | AC16: =IF(Table134[[#This Row],[Column15]]="","",(1+Table134[[#This Row],[Column15]])) ->  | AD16: =IF(Table134[[#This Row],[Column15]]="","",LN(AC16)) ->  | AK16: 15 | AL16: 1 | AM16: 0.1397644339 | AN16: 0.07459550731 | AP16: 0.1397644339 | AQ16: 1 | AR16: 1 | AS16: 1
A17: Post-tax debt fund corpus without indexation | D17: =D16-(D16-F3)*10.3% -> 1835164.345 | F17: =(corpnoindex/F3)^(1/tenure)-1 -> 0.06259433515 | M17: =IF(Table134[[#This Row],[Column1]]=tenure,Table134[[#This Row],[Column3]],"") ->  | O17: =N17*((1+Table134[[#This Row],[Column13]])) ->  | P17: =IF(Table134[[#This Row],[Column1]]=tenure,IF(corpnoindex<corpindex,corpnoindex,corpindex),NA()) ->  | Q17: 0.05528 | R17: 0.05307800333 | S17: 0.05801900941 | T17: 14 | U17: 0.06133215793 | X17: =IF(Table134[[#This Row],[Column1]]=tenure,fdcashposttax,NA()) ->  | Y17: =IF(I17<=tenure,Table134[[#This Row],[Column13]],"") ->  | AB17: =IF(Table134[[#This Row],[Column15]]="",1,(1+Table134[[#This Row],[Column15]])) -> 1 | AC17: =IF(Table134[[#This Row],[Column15]]="","",(1+Table134[[#This Row],[Column15]])) ->  | AD17: =IF(Table134[[#This Row],[Column15]]="","",LN(AC17)) ->  | AK17: 16 | AL17: 0 | AM17: 0.0232586713 | AN17: 0.0677488772 | AP17: =MAX(AM17:AN17) -> 0.0677488772 | AQ17: 1 | AR17: 1 | AS17: 1
A18: Post-tax debt fund corpus with indexation | D18: =IF(D16-F3*(1+F12)^tenure>0,D16-(D16-F3*(1+F12)^tenure)*20.6%,D16) -> 1868817.054 | F18: =(corpindex/F3)^(1/tenure)-1 -> 0.06452699453 | M18: =IF(Table134[[#This Row],[Column1]]=tenure,Table134[[#This Row],[Column3]],"") ->  | O18: =N18*((1+Table134[[#This Row],[Column13]])) ->  | P18: =IF(Table134[[#This Row],[Column1]]=tenure,IF(corpnoindex<corpindex,corpnoindex,corpindex),NA()) ->  | Q18: 0.05528 | R18: 0.05285413887 | S18: 0.05692787969 | T18: 15 | U18: 0.06159858681 | X18: =IF(Table134[[#This Row],[Column1]]=tenure,fdcashposttax,NA()) ->  | Y18: =IF(I18<=tenure,Table134[[#This Row],[Column13]],"") ->  | AB18: =IF(Table134[[#This Row],[Column15]]="",1,(1+Table134[[#This Row],[Column15]])) -> 1 | AC18: =IF(Table134[[#This Row],[Column15]]="","",(1+Table134[[#This Row],[Column15]])) ->  | AD18: =IF(Table134[[#This Row],[Column15]]="","",LN(AC18)) ->  | AK18: 17 | AL18: 1 | AM18: 0.1179712242 | AN18: 0.1066168599 | AP18: 0.1179712242 | AQ18: 1 | AR18: 1 | AS18: 1
M19: =IF(Table134[[#This Row],[Column1]]=tenure,Table134[[#This Row],[Column3]],"") ->  | O19: =N19*((1+Table134[[#This Row],[Column13]])) ->  | P19: =IF(Table134[[#This Row],[Column1]]=tenure,IF(corpnoindex<corpindex,corpnoindex,corpindex),NA()) ->  | Q19: 0.05528 | R19: 0.05660013736 | S19: 0.0590609551 | T19: 16 | U19: 0.06185630661 | X19: =IF(Table134[[#This Row],[Column1]]=tenure,fdcashposttax,NA()) ->  | Y19: =IF(I19<=tenure,Table134[[#This Row],[Column13]],"") ->  | AB19: =IF(Table134[[#This Row],[Column15]]="",1,(1+Table134[[#This Row],[Column15]])) -> 1 | AC19: =IF(Table134[[#This Row],[Column15]]="","",(1+Table134[[#This Row],[Column15]])) ->  | AD19: =IF(Table134[[#This Row],[Column15]]="","",LN(AC19)) ->  | AK19: 18 | AL19: 0 | AM19: 0.07848450297 | AN19: 0.06470875036 | AP19: 0.07848450297 | AQ19: 1 | AR19: 1 | AS19: 1
A20: FD Taxation method: Cash basis. Tds paid each FY | M20: =IF(Table134[[#This Row],[Column1]]=tenure,Table134[[#This Row],[Column3]],"") ->  | O20: =N20*((1+Table134[[#This Row],[Column13]])) ->  | P20: =IF(Table134[[#This Row],[Column1]]=tenure,IF(corpnoindex<corpindex,corpnoindex,corpindex),NA()) ->  | Q20: 0.05528 | R20: 0.05558039633 | S20: 0.06164208908 | T20: 17 | U20: 0.06210555809 | X20: =IF(Table134[[#This Row],[Column1]]=tenure,fdcashposttax,NA()) ->  | Y20: =IF(I20<=tenure,Table134[[#This Row],[Column13]],"") ->  | AB20: =IF(Table134[[#This Row],[Column15]]="",1,(1+Table134[[#This Row],[Column15]])) -> 1 | AC20: =IF(Table134[[#This Row],[Column15]]="","",(1+Table134[[#This Row],[Column15]])) ->  | AD20: =IF(Table134[[#This Row],[Column15]]="","",LN(AC20)) ->  | AK20: 19 | AL20: 1 | AM20: 0.1263011538 | AN20: -0.02148188478 | AP20: 0.1263011538 | AQ20: 1 | AR20: 1 | AS20: 1
A21: but rest of the tax paid on maturity | E21: Post-tax Returns | M21: =IF(Table134[[#This Row],[Column1]]=tenure,Table134[[#This Row],[Column3]],"") ->  | O21: =N21*((1+Table134[[#This Row],[Column13]])) ->  | P21: =IF(Table134[[#This Row],[Column1]]=tenure,IF(corpnoindex<corpindex,corpnoindex,corpindex),NA()) ->  | Q21: 0.05528 | R21: 0.05764883926 | S21: 0.05752793744 | T21: 18 | U21: 0.06234658323 | X21: =IF(Table134[[#This Row],[Column1]]=tenure,fdcashposttax,NA()) ->  | Y21: =IF(I21<=tenure,Table134[[#This Row],[Column13]],"") ->  | AB21: =IF(Table134[[#This Row],[Column15]]="",1,(1+Table134[[#This Row],[Column15]])) -> 1 | AC21: =IF(Table134[[#This Row],[Column15]]="","",(1+Table134[[#This Row],[Column15]])) ->  | AD21: =IF(Table134[[#This Row],[Column15]]="","",LN(AC21)) ->  | AK21: 20 | AL21: 1 | AM21: 0.02833978864 | AN21: -0.06715304667 | AP21: 0.02833978864 | AQ21: 0 | AR21: 0 | AS21: 0
A22: Corpus from fixed deposit (post-tds) | D22: =sum*((1+rate*(1-10.3%)))^tenure -> 1999748.794 | M22: =IF(Table134[[#This Row],[Column1]]=tenure,Table134[[#This Row],[Column3]],"") ->  | O22: =N22*((1+Table134[[#This Row],[Column13]])) ->  | P22: =IF(Table134[[#This Row],[Column1]]=tenure,IF(corpnoindex<corpindex,corpnoindex,corpindex),NA()) ->  | Q22: 0.05528 | R22: 0.06031406934 | S22: 0.05940932417 | T22: 19 | U22: 0.06257962425 | X22: =IF(Table134[[#This Row],[Column1]]=tenure,fdcashposttax,NA()) ->  | Y22: =IF(I22<=tenure,Table134[[#This Row],[Column13]],"") ->  | AB22: =IF(Table134[[#This Row],[Column15]]="",1,(1+Table134[[#This Row],[Column15]])) -> 1 | AC22: =IF(Table134[[#This Row],[Column15]]="","",(1+Table134[[#This Row],[Column15]])) ->  | AD22: =IF(Table134[[#This Row],[Column15]]="","",LN(AC22)) ->  | AK22: 21 | AL22: 1 | AM22: 0.0309724476 | AN22: 0.1624707517 | AP22: 0.1624707517 | AQ22: 1 | AR22: 1 | AS22: 1
A23: Corpus from fixed deposit (post-tax) | D23: =D22-((D22-F3)*(IF((IF(tax=10%,10.3%,IF(tax=20%,20.6%,IF(tax=30%,30.9%)))-10.3%)<0,0,(IF(tax=10%,10.3%,IF(tax=20%,20.6%,IF(tax=30%,30.9%)))-10.3%)))) -> 1793800.543 | F23: =(D23/F3)^(1/tenure)-1 -> 0.06017464897 | M23: =IF(Table134[[#This Row],[Column1]]=tenure,Table134[[#This Row],[Column3]],"") ->  | O23: =N23*((1+Table134[[#This Row],[Column13]])) ->  | P23: =IF(Table134[[#This Row],[Column1]]=tenure,IF(corpnoindex<corpindex,corpnoindex,corpindex),NA()) ->  | Q23: 0.05528 | R23: 0.05753966811 | S23: 0.05510918365 | T23: 20 | U23: 0.06280492263 | X23: =IF(Table134[[#This Row],[Column1]]=tenure,fdcashposttax,NA()) ->  | Y23: =IF(I23<=tenure,Table134[[#This Row],[Column13]],"") ->  | AB23: =IF(Table134[[#This Row],[Column15]]="",1,(1+Table134[[#This Row],[Column15]])) -> 1 | AC23: =IF(Table134[[#This Row],[Column15]]="","",(1+Table134[[#This Row],[Column15]])) ->  | AD23: =IF(Table134[[#This Row],[Column15]]="","",LN(AC23)) ->  | AK23: 22 | AL23: 1 | AM23: -0.002419856227 | AN23: 0.06572207149 | AP23: 0.06572207149 | AQ23: 1 | AR23: 1 | AS23: 1
M24: =IF(Table134[[#This Row],[Column1]]=tenure,Table134[[#This Row],[Column3]],"") ->  | O24: =N24*((1+Table134[[#This Row],[Column13]])) ->  | P24: =IF(Table134[[#This Row],[Column1]]=tenure,IF(corpnoindex<corpindex,corpnoindex,corpindex),NA()) ->  | Q24: 0.05528 | R24: 0.05748936606 | S24: 0.05852074132 | T24: 21 | U24: 0.0630227183 | X24: =IF(Table134[[#This Row],[Column1]]=tenure,fdcashposttax,NA()) ->  | Y24: =IF(I24<=tenure,Table134[[#This Row],[Column13]],"") ->  | AB24: =IF(Table134[[#This Row],[Column15]]="",1,(1+Table134[[#This Row],[Column15]])) -> 1 | AC24: =IF(Table134[[#This Row],[Column15]]="","",(1+Table134[[#This Row],[Column15]])) ->  | AD24: =IF(Table134[[#This Row],[Column15]]="","",LN(AC24)) ->  | AK24: 23 | AL24: 1 | AM24: 0.0844365423 | AN24: 0.05377579829 | AP24: 0.0844365423 | AQ24: 1 | AR24: 1 | AS24: 1
A25: Results of the simulation | M25: =IF(Table134[[#This Row],[Column1]]=tenure,Table134[[#This Row],[Column3]],"") ->  | O25: =N25*((1+Table134[[#This Row],[Column13]])) ->  | P25: =IF(Table134[[#This Row],[Column1]]=tenure,IF(corpnoindex<corpindex,corpnoindex,corpindex),NA()) ->  | Q25: 0.05528 | R25: 0.05724617749 | S25: 0.0552253744 | T25: 22 | U25: 0.06323324889 | X25: =IF(Table134[[#This Row],[Column1]]=tenure,fdcashposttax,NA()) ->  | Y25: =IF(I25<=tenure,Table134[[#This Row],[Column13]],"") ->  | AB25: =IF(Table134[[#This Row],[Column15]]="",1,(1+Table134[[#This Row],[Column15]])) -> 1 | AC25: =IF(Table134[[#This Row],[Column15]]="","",(1+Table134[[#This Row],[Column15]])) ->  | AD25: =IF(Table134[[#This Row],[Column15]]="","",LN(AC25)) ->  | AK25: 24 | AL25: 0 | AM25: 0.07406808601 | AN25: 0.04621760896 | AP25: 0.07406808601 | AQ25: 1 | AR25: 1 | AS25: 1
M26: =IF(Table134[[#This Row],[Column1]]=tenure,Table134[[#This Row],[Column3]],"") ->  | O26: =N26*((1+Table134[[#This Row],[Column13]])) ->  | P26: =IF(Table134[[#This Row],[Column1]]=tenure,IF(corpnoindex<corpindex,corpnoindex,corpindex),NA()) ->  | Q26: 0.05528 | R26: 0.05714452373 | S26: 0.05702740998 | T26: 23 | U26: 0.06343674907 | X26: =IF(Table134[[#This Row],[Column1]]=tenure,fdcashposttax,NA()) ->  | Y26: =IF(I26<=tenure,Table134[[#This Row],[Column13]],"") ->  | AB26: =IF(Table134[[#This Row],[Column15]]="",1,(1+Table134[[#This Row],[Column15]])) -> 1 | AC26: =IF(Table134[[#This Row],[Column15]]="","",(1+Table134[[#This Row],[Column15]])) ->  | AD26: =IF(Table134[[#This Row],[Column15]]="","",LN(AC26)) ->  | AK26: 25 | AL26: 1 | AM26: -0.008365848258 | AN26: 0.1020071567 | AP26: 0.1020071567 | AQ26: 1 | AR26: 1 | AS26: 1
A27: out of | B27: =trials -> 500 | C27: trials, the debt fund has a | E27: =SUM(AQ2:AQ504)/trials -> 0.8 | F27: chance of achieving | M27: =IF(Table134[[#This Row],[Column1]]=tenure,Table134[[#This Row],[Column3]],"") ->  | O27: =N27*((1+Table134[[#This Row],[Column13]])) ->  | P27: =IF(Table134[[#This Row],[Column1]]=tenure,IF(corpnoindex<corpindex,corpnoindex,corpindex),NA()) ->  | Q27: 0.05528 | R27: 0.0542821979 | S27: 0.05786540578 | T27: 24 | U27: 0.06363345002 | X27: =IF(Table134[[#This Row],[Column1]]=tenure,fdcashposttax,NA()) ->  | Y27: =IF(I27<=tenure,Table134[[#This Row],[Column13]],"") ->  | AB27: =IF(Table134[[#This Row],[Column15]]="",1,(1+Table134[[#This Row],[Column15]])) -> 1 | AC27: =IF(Table134[[#This Row],[Column15]]="","",(1+Table134[[#This Row],[Column15]])) ->  | AD27: =IF(Table134[[#This Row],[Column15]]="","",LN(AC27)) ->  | AK27: 26 | AL27: 1 | AM27: 0.02920262936 | AN27: 0.08207654155 | AP27: 0.08207654155 | AQ27: 1 | AR27: 1 | AS27: 1
A28: higher post-tax returns compared to a fixed deposit for which tax is paid each FY | M28: =IF(Table134[[#This Row],[Column1]]=tenure,Table134[[#This Row],[Column3]],"") ->  | O28: =N28*((1+Table134[[#This Row],[Column13]])) ->  | P28: =IF(Table134[[#This Row],[Column1]]=tenure,IF(corpnoindex<corpindex,corpnoindex,corpindex),NA()) ->  | Q28: 0.05528 | R28: 0.05544200078 | S28: 0.05737086192 | T28: 25 | U28: 0.06382357895 | X28: =IF(Table134[[#This Row],[Column1]]=tenure,fdcashposttax,NA()) ->  | Y28: =IF(I28<=tenure,Table134[[#This Row],[Column13]],"") ->  | AB28: =IF(Table134[[#This Row],[Column15]]="",1,(1+Table134[[#This Row],[Column15]])) -> 1 | AC28: =IF(Table134[[#This Row],[Column15]]="","",(1+Table134[[#This Row],[Column15]])) ->  | AD28: =IF(Table134[[#This Row],[Column15]]="","",LN(AC28)) ->  | AK28: 27 | AL28: 1 | AM28: 0.03285024163 | AN28: 0.09663483962 | AP28: 0.09663483962 | AQ28: 1 | AR28: 1 | AS28: 1
M29: =IF(Table134[[#This Row],[Column1]]=tenure,Table134[[#This Row],[Column3]],"") ->  | O29: =N29*((1+Table134[[#This Row],[Column13]])) ->  | P29: =IF(Table134[[#This Row],[Column1]]=tenure,IF(corpnoindex<corpindex,corpnoindex,corpindex),NA()) ->  | Q29: 0.05528 | R29: 0.05651645072 | S29: 0.05601438824 | T29: 26 | U29: 0.06400735865 | X29: =IF(Table134[[#This Row],[Column1]]=tenure,fdcashposttax,NA()) ->  | Y29: =IF(I29<=tenure,Table134[[#This Row],[Column13]],"") ->  | AB29: =IF(Table134[[#This Row],[Column15]]="",1,(1+Table134[[#This Row],[Column15]])) -> 1 | AC29: =IF(Table134[[#This Row],[Column15]]="","",(1+Table134[[#This Row],[Column15]])) ->  | AD29: =IF(Table134[[#This Row],[Column15]]="","",LN(AC29)) ->  | AK29: 28 | AL29: 1 | AM29: 0.04632025294 | AN29: 0.09180762322 | AP29: 0.09180762322 | AQ29: 1 | AR29: 1 | AS29: 1
A30: out of | B30: =trials -> 500 | C30: trials, the debt fund has a | E30: =SUM(AR2:AR504)/trials -> 0.746 | F30: chance of achieving | M30: =IF(Table134[[#This Row],[Column1]]=tenure,Table134[[#This Row],[Column3]],"") ->  | O30: =N30*((1+Table134[[#This Row],[Column13]])) ->  | P30: =IF(Table134[[#This Row],[Column1]]=tenure,IF(corpnoindex<corpindex,corpnoindex,corpindex),NA()) ->  | Q30: 0.05528 | R30: 0.05458996306 | S30: 0.05966842057 | T30: 27 | U30: 0.06418500722 | X30: =IF(Table134[[#This Row],[Column1]]=tenure,fdcashposttax,NA()) ->  | Y30: =IF(I30<=tenure,Table134[[#This Row],[Column13]],"") ->  | AB30: =IF(Table134[[#This Row],[Column15]]="",1,(1+Table134[[#This Row],[Column15]])) -> 1 | AC30: =IF(Table134[[#This Row],[Column15]]="","",(1+Table134[[#This Row],[Column15]])) ->  | AD30: =IF(Table134[[#This Row],[Column15]]="","",LN(AC30)) ->  | AK30: 29 | AL30: 0 | AM30: 0.1969043226 | AN30: -0.01119691 | AP30: 0.1969043226 | AQ30: 1 | AR30: 1 | AS30: 1
A31: higher post-tax returns compared to a fixed deposit for which tax* is paid on maturity | M31: =IF(Table134[[#This Row],[Column1]]=tenure,Table134[[#This Row],[Column3]],"") ->  | O31: =N31*((1+Table134[[#This Row],[Column13]])) ->  | P31: =IF(Table134[[#This Row],[Column1]]=tenure,IF(corpnoindex<corpindex,corpnoindex,corpindex),NA()) ->  | Q31: 0.05528 | R31: 0.05599765467 | S31: 0.06050944817 | T31: 28 | U31: 0.0643567377 | X31: =IF(Table134[[#This Row],[Column1]]=tenure,fdcashposttax,NA()) ->  | Y31: =IF(I31<=tenure,Table134[[#This Row],[Column13]],"") ->  | AB31: =IF(Table134[[#This Row],[Column15]]="",1,(1+Table134[[#This Row],[Column15]])) -> 1 | AC31: =IF(Table134[[#This Row],[Column15]]="","",(1+Table134[[#This Row],[Column15]])) ->  | AD31: =IF(Table134[[#This Row],[Column15]]="","",LN(AC31)) ->  | AK31: 30 | AL31: 1 | AM31: 0.0571186297 | AN31: 0.023701822 | AP31: 0.0571186297 | AQ31: 1 | AR31: 0 | AS31: 0
A32: * tax except tds. TDS is paid each FY | M32: =IF(Table134[[#This Row],[Column1]]=tenure,Table134[[#This Row],[Column3]],"") ->  | O32: =N32*((1+Table134[[#This Row],[Column13]])) ->  | P32: =IF(Table134[[#This Row],[Column1]]=tenure,IF(corpnoindex<corpindex,corpnoindex,corpindex),NA()) ->  | Q32: 0.05528 | R32: 0.06071176721 | S32: 0.06004032681 | T32: 29 | U32: 0.06452275793 | X32: =IF(Table134[[#This Row],[Column1]]=tenure,fdcashposttax,NA()) ->  | Y32: =IF(I32<=tenure,Table134[[#This Row],[Column13]],"") ->  | AB32: =IF(Table134[[#This Row],[Column15]]="",1,(1+Table134[[#This Row],[Column15]])) -> 1 | AC32: =IF(Table134[[#This Row],[Column15]]="","",(1+Table134[[#This Row],[Column15]])) ->  | AD32: =IF(Table134[[#This Row],[Column15]]="","",LN(AC32)) ->  | AK32: 31 | AL32: 1 | AM32: 0.09879568715 | AN32: 0.06510018814 | AP32: 0.09879568715 | AQ32: 1 | AR32: 1 | AS32: 1
M33: =IF(Table134[[#This Row],[Column1]]=tenure,Table134[[#This Row],[Column3]],"") ->  | O33: =N33*((1+Table134[[#This Row],[Column13]])) ->  | P33: =IF(Table134[[#This Row],[Column1]]=tenure,IF(corpnoindex<corpindex,corpnoindex,corpindex),NA()) ->  | Q33: 0.05528 | R33: 0.05407590258 | S33: 0.05910152654 | T33: 30 | U33: 0.06468327034 | X33: =IF(Table134[[#This Row],[Column1]]=tenure,fdcashposttax,NA()) ->  | Y33: =IF(I33<=tenure,Table134[[#This Row],[Column13]],"") ->  | AB33: =IF(Table134[[#This Row],[Column15]]="",1,(1+Table134[[#This Row],[Column15]])) -> 1 | AC33: =IF(Table134[[#This Row],[Column15]]="","",(1+Table134[[#This Row],[Column15]])) ->  | AD33: =IF(Table134[[#This Row],[Column15]]="","",LN(AC33)) ->  | AK33: 32 | AL33: 1 | AM33: 0.04049691722 | AN33: -0.02881065567 | AP33: 0.04049691722 | AQ33: 0 | AR33: 0 | AS33: 0
A34: Note that deferring tax on FD is possible only when someone consistently chooses to | M34: =IF(Table134[[#This Row],[Column1]]=tenure,Table134[[#This Row],[Column3]],"") ->  | O34: =N34*((1+Table134[[#This Row],[Column13]])) ->  | P34: =IF(Table134[[#This Row],[Column1]]=tenure,IF(corpnoindex<corpindex,corpnoindex,corpindex),NA()) ->  | X34: =IF(Table134[[#This Row],[Column1]]=tenure,fdcashposttax,NA()) ->  | Y34: =IF(I34<=tenure,Table134[[#This Row],[Column13]],"") ->  | AB34: =IF(Table134[[#This Row],[Column15]]="",1,(1+Table134[[#This Row],[Column15]])) -> 1 | AC34: =IF(Table134[[#This Row],[Column15]]="","",(1+Table134[[#This Row],[Column15]])) ->  | AD34: =IF(Table134[[#This Row],[Column15]]="","",LN(AC34)) ->  | AK34: 33 | AL34: 0 | AM34: 0.1043604464 | AN34: 0.09625718726 | AP34: 0.1043604464 | AQ34: 1 | AR34: 1 | AS34: 1
A35: follow this procedure. If you have already paid FD tax each FY then you cannot | M35: =IF(Table134[[#This Row],[Column1]]=tenure,Table134[[#This Row],[Column3]],"") ->  | O35: =N35*((1+Table134[[#This Row],[Column13]])) ->  | P35: =IF(Table134[[#This Row],[Column1]]=tenure,IF(corpnoindex<corpindex,corpnoindex,corpindex),NA()) ->  | X35: =IF(Table134[[#This Row],[Column1]]=tenure,fdcashposttax,NA()) ->  | Y35: =IF(I35<=tenure,Table134[[#This Row],[Column13]],"") ->  | AB35: =IF(Table134[[#This Row],[Column15]]="",1,(1+Table134[[#This Row],[Column15]])) -> 1 | AC35: =IF(Table134[[#This Row],[Column15]]="","",(1+Table134[[#This Row],[Column15]])) ->  | AD35: =IF(Table134[[#This Row],[Column15]]="","",LN(AC35)) ->  | AK35: 34 | AL35: 1 | AM35: 0.07339568729 | AN35: 0.05132268029 | AP35: 0.07339568729 | AQ35: 1 | AR35: 1 | AS35: 1
A36: change the tax payment method! | L36: =IF(I36<=tenure,(rated+SQRT(-2*LN(RAND()))*COS(2*PI()*RAND())*volatility),"") ->  | M36: =IF(Table134[[#This Row],[Column1]]=tenure,Table134[[#This Row],[Column3]],"") ->  | O36: =N36*((1+Table134[[#This Row],[Column13]])) ->  | P36: =IF(Table134[[#This Row],[Column1]]=tenure,IF(corpnoindex<corpindex,corpnoindex,corpindex),NA()) ->  | X36: =IF(Table134[[#This Row],[Column1]]=tenure,fdcashposttax,NA()) ->  | Y36: =IF(I36<=tenure,Table134[[#This Row],[Column13]],"") ->  | AB36: =IF(Table134[[#This Row],[Column15]]="",1,(1+Table134[[#This Row],[Column15]])) -> 1 | AC36: =IF(Table134[[#This Row],[Column15]]="","",(1+Table134[[#This Row],[Column15]])) ->  | AD36: =IF(Table134[[#This Row],[Column15]]="","",LN(AC36)) ->  | AK36: 35 | AL36: 1 | AM36: 0.0495473913 | AN36: 0.09776619605 | AP36: 0.09776619605 | AQ36: 1 | AR36: 1 | AS36: 1
I37: =IF(I36<tenure,I36+1,"") ->  | J37: =IF(I37<=tenure,K36,"") ->  | K37: =IF(I37<=tenure,J37*((1+rate*(1-IF(tax=10%,10.3%,IF(tax=20%,20.6%,IF(tax=30%,30.9%)))))),NA()) ->  | M37: =IF(Table134[[#This Row],[Column1]]=tenure,Table134[[#This Row],[Column3]],"") ->  | N37: =IF(I37<=tenure,O36,"") ->  | O37: =N37*((1+Table134[[#This Row],[Column13]])) ->  | P37: =IF(Table134[[#This Row],[Column1]]=tenure,IF(corpnoindex<corpindex,corpnoindex,corpindex),NA()) ->  | V37: =IF(I37<=tenure,W36,"") ->  | W37: =IF(I37<=tenure,V37*((1+rate*(1-10.3%))),NA()) ->  | X37: =IF(Table134[[#This Row],[Column1]]=tenure,fdcashposttax,NA()) ->  | Y37: =IF(I37<=tenure,Table134[[#This Row],[Column13]],"") ->  | AB37: =IF(Table134[[#This Row],[Column15]]="",1,(1+Table134[[#This Row],[Column15]])) -> 1 | AC37: =IF(Table134[[#This Row],[Column15]]="","",(1+Table134[[#This Row],[Column15]])) ->  | AD37: =IF(Table134[[#This Row],[Column15]]="","",LN(AC37)) ->  | AK37: 36 | AL37: 0 | AM37: 0.1315696376 | AN37: 0.1676521669 | AP37: 0.1676521669 | AQ37: 1 | AR37: 1 | AS37: 1
M38: =IF(Table134[[#This Row],[Column1]]=tenure,Table134[[#This Row],[Column3]],"") ->  | O38: =N38*((1+Table134[[#This Row],[Column13]])) ->  | P38: =IF(Table134[[#This Row],[Column1]]=tenure,IF(corpnoindex<corpindex,corpnoindex,corpindex),NA()) ->  | X38: =IF(Table134[[#This Row],[Column1]]=tenure,fdcashposttax,NA()) ->  | Y38: =IF(I38<=tenure,Table134[[#This Row],[Column13]],"") ->  | AB38: =IF(Table134[[#This Row],[Column15]]="",1,(1+Table134[[#This Row],[Column15]])) -> 1 | AC38: =IF(Table134[[#This Row],[Column15]]="","",(1+Table134[[#This Row],[Column15]])) ->  | AD38: =IF(Table134[[#This Row],[Column15]]="","",LN(AC38)) ->  | AK38: 37 | AL38: 1 | AM38: -0.009414111317 | AN38: 0.06900187796 | AP38: 0.06900187796 | AQ38: 1 | AR38: 1 | AS38: 1
M39: =IF(Table134[[#This Row],[Column1]]=tenure,Table134[[#This Row],[Column3]],"") ->  | O39: =N39*((1+Table134[[#This Row],[Column13]])) ->  | P39: =IF(Table134[[#This Row],[Column1]]=tenure,IF(corpnoindex<corpindex,corpnoindex,corpindex),NA()) ->  | X39: =IF(Table134[[#This Row],[Column1]]=tenure,fdcashposttax,NA()) ->  | Y39: =IF(I39<=tenure,Table134[[#This Row],[Column13]],"") ->  | AB39: =IF(Table134[[#This Row],[Column15]]="",1,(1+Table134[[#This Row],[Column15]])) -> 1 | AC39: =IF(Table134[[#This Row],[Column15]]="","",(1+Table134[[#This Row],[Column15]])) ->  | AD39: =IF(Table134[[#This Row],[Column15]]="","",LN(AC39)) ->  | AK39: 38 | AL39: 1 | AM39: 0.1436058492 | AN39: 0.1538399263 | AP39: 0.1538399263 | AQ39: 1 | AR39: 1 | AS39: 1
M40: =IF(Table134[[#This Row],[Column1]]=tenure,Table134[[#This Row],[Column3]],"") ->  | O40: =N40*((1+Table134[[#This Row],[Column13]])) ->  | P40: =IF(Table134[[#This Row],[Column1]]=tenure,IF(corpnoindex<corpindex,corpnoindex,corpindex),NA()) ->  | X40: =IF(Table134[[#This Row],[Column1]]=tenure,fdcashposttax,NA()) ->  | Y40: =IF(I40<=tenure,Table134[[#This Row],[Column13]],"") ->  | AB40: =IF(Table134[[#This Row],[Column15]]="",1,(1+Table134[[#This Row],[Column15]])) -> 1 | AC40: =IF(Table134[[#This Row],[Column15]]="","",(1+Table134[[#This Row],[Column15]])) ->  | AD40: =IF(Table134[[#This Row],[Column15]]="","",LN(AC40)) ->  | AK40: 39 | AL40: 1 | AM40: -0.02741954351 | AN40: 0.05606905911 | AP40: 0.05606905911 | AQ40: 1 | AR40: 0 | AS40: 0
M41: =IF(Table134[[#This Row],[Column1]]=tenure,Table134[[#This Row],[Column3]],"") ->  | O41: =N41*((1+Table134[[#This Row],[Column13]])) ->  | P41: =IF(Table134[[#This Row],[Column1]]=tenure,IF(corpnoindex<corpindex,corpnoindex,corpindex),NA()) ->  | X41: =IF(Table134[[#This Row],[Column1]]=tenure,fdcashposttax,NA()) ->  | Y41: =IF(I41<=tenure,Table134[[#This Row],[Column13]],"") ->  | AB41: =IF(Table134[[#This Row],[Column15]]="",1,(1+Table134[[#This Row],[Column15]])) -> 1 | AC41: =IF(Table134[[#This Row],[Column15]]="","",(1+Table134[[#This Row],[Column15]])) ->  | AD41: =IF(Table134[[#This Row],[Column15]]="","",LN(AC41)) ->  | AK41: 40 | AL41: 2 | AM41: 0.1431479922 | AN41: 0.1334378713 | AP41: 0.1431479922 | AQ41: 1 | AR41: 1 | AS41: 1
M42: =IF(Table134[[#This Row],[Column1]]=tenure,Table134[[#This Row],[Column3]],"") ->  | O42: =N42*((1+Table134[[#This Row],[Column13]])) ->  | P42: =IF(Table134[[#This Row],[Column1]]=tenure,IF(corpnoindex<corpindex,corpnoindex,corpindex),NA()) ->  | X42: =IF(Table134[[#This Row],[Column1]]=tenure,fdcashposttax,NA()) ->  | Y42: =IF(I42<=tenure,Table134[[#This Row],[Column13]],"") ->  | AB42: =IF(Table134[[#This Row],[Column15]]="",1,(1+Table134[[#This Row],[Column15]])) -> 1 | AC42: =IF(Table134[[#This Row],[Column15]]="","",(1+Table134[[#This Row],[Column15]])) ->  | AD42: =IF(Table134[[#This Row],[Column15]]="","",LN(AC42)) ->  | AK42: 41 | AL42: 1 | AM42: 0.1489847944 | AN42: -0.01825738191 | AP42: 0.1489847944 | AQ42: 1 | AR42: 1 | AS42: 1
M43: =IF(Table134[[#This Row],[Column1]]=tenure,Table134[[#This Row],[Column3]],"") ->  | O43: =N43*((1+Table134[[#This Row],[Column13]])) ->  | P43: =IF(Table134[[#This Row],[Column1]]=tenure,IF(corpnoindex<corpindex,corpnoindex,corpindex),NA()) ->  | X43: =IF(Table134[[#This Row],[Column1]]=tenure,fdcashposttax,NA()) ->  | Y43: =IF(I43<=tenure,Table134[[#This Row],[Column13]],"") ->  | AB43: =IF(Table134[[#This Row],[Column15]]="",1,(1+Table134[[#This Row],[Column15]])) -> 1 | AC43: =IF(Table134[[#This Row],[Column15]]="","",(1+Table134[[#This Row],[Column15]])) ->  | AD43: =IF(Table134[[#This Row],[Column15]]="","",LN(AC43)) ->  | AK43: 42 | AL43: 1 | AM43: -0.03867961145 | AN43: 0.01450126098 | AP43: 0.01450126098 | AQ43: 0 | AR43: 0 | AS43: 0
M44: =IF(Table134[[#This Row],[Column1]]=tenure,Table134[[#This Row],[Column3]],"") ->  | O44: =N44*((1+Table134[[#This Row],[Column13]])) ->  | P44: =IF(Table134[[#This Row],[Column1]]=tenure,IF(corpnoindex<corpindex,corpnoindex,corpindex),NA()) ->  | X44: =IF(Table134[[#This Row],[Column1]]=tenure,fdcashposttax,NA()) ->  | Y44: =IF(I44<=tenure,Table134[[#This Row],[Column13]],"") ->  | AB44: =IF(Table134[[#This Row],[Column15]]="",1,(1+Table134[[#This Row],[Column15]])) -> 1 | AC44: =IF(Table134[[#This Row],[Column15]]="","",(1+Table134[[#This Row],[Column15]])) ->  | AD44: =IF(Table134[[#This Row],[Column15]]="","",LN(AC44)) ->  | AK44: 43 | AL44: 0 | AM44: 0.0800903796 | AN44: 0.05616301122 | AP44: 0.0800903796 | AQ44: 1 | AR44: 1 | AS44: 1
M45: =IF(Table134[[#This Row],[Column1]]=tenure,Table134[[#This Row],[Column3]],"") ->  | O45: =N45*((1+Table134[[#This Row],[Column13]])) ->  | P45: =IF(Table134[[#This Row],[Column1]]=tenure,IF(corpnoindex<corpindex,corpnoindex,corpindex),NA()) ->  | X45: =IF(Table134[[#This Row],[Column1]]=tenure,fdcashposttax,NA()) ->  | Y45: =IF(I45<=tenure,Table134[[#This Row],[Column13]],"") ->  | AB45: =IF(Table134[[#This Row],[Column15]]="",1,(1+Table134[[#This Row],[Column15]])) -> 1 | AC45: =IF(Table134[[#This Row],[Column15]]="","",(1+Table134[[#This Row],[Column15]])) ->  | AD45: =IF(Table134[[#This Row],[Column15]]="","",LN(AC45)) ->  | AK45: 44 | AL45: 1 | AM45: 0.06950238261 | AN45: 0.04875961277 | AP45: 0.06950238261 | AQ45: 1 | AR45: 1 | AS45: 1
M46: =IF(Table134[[#This Row],[Column1]]=tenure,Table134[[#This Row],[Column3]],"") ->  | O46: =N46*((1+Table134[[#This Row],[Column13]])) ->  | P46: =IF(Table134[[#This Row],[Column1]]=tenure,IF(corpnoindex<corpindex,corpnoindex,corpindex),NA()) ->  | X46: =IF(Table134[[#This Row],[Column1]]=tenure,fdcashposttax,NA()) ->  | Y46: =IF(I46<=tenure,Table134[[#This Row],[Column13]],"") ->  | AB46: =IF(Table134[[#This Row],[Column15]]="",1,(1+Table134[[#This Row],[Column15]])) -> 1 | AC46: =IF(Table134[[#This Row],[Column15]]="","",(1+Table134[[#This Row],[Column15]])) ->  | AD46: =IF(Table134[[#This Row],[Column15]]="","",LN(AC46)) ->  | AK46: 45 | AL46: 1 | AM46: 0.02321552411 | AN46: -0.02463147539 | AP46: 0.02321552411 | AQ46: 0 | AR46: 0 | AS46: 0
M47: =IF(Table134[[#This Row],[Column1]]=tenure,Table134[[#This Row],[Column3]],"") ->  | O47: =N47*((1+Table134[[#This Row],[Column13]])) ->  | P47: =IF(Table134[[#This Row],[Column1]]=tenure,IF(corpnoindex<corpindex,corpnoindex,corpindex),NA()) ->  | X47: =IF(Table134[[#This Row],[Column1]]=tenure,fdcashposttax,NA()) ->  | Y47: =IF(I47<=tenure,Table134[[#This Row],[Column13]],"") ->  | AB47: =IF(Table134[[#This Row],[Column15]]="",1,(1+Table134[[#This Row],[Column15]])) -> 1 | AC47: =IF(Table134[[#This Row],[Column15]]="","",(1+Table134[[#This Row],[Column15]])) ->  | AD47: =IF(Table134[[#This Row],[Column15]]="","",LN(AC47)) ->  | AK47: 46 | AL47: 1 | AM47: 0.00810694192 | AN47: 0.03817365306 | AP47: 0.03817365306 | AQ47: 0 | AR47: 0 | AS47: 0
M48: =IF(Table134[[#This Row],[Column1]]=tenure,Table134[[#This Row],[Column3]],"") ->  | O48: =N48*((1+Table134[[#This Row],[Column13]])) ->  | P48: =IF(Table134[[#This Row],[Column1]]=tenure,IF(corpnoindex<corpindex,corpnoindex,corpindex),NA()) ->  | X48: =IF(Table134[[#This Row],[Column1]]=tenure,fdcashposttax,NA()) ->  | Y48: =IF(I48<=tenure,Table134[[#This Row],[Column13]],"") ->  | AB48: =IF(Table134[[#This Row],[Column15]]="",1,(1+Table134[[#This Row],[Column15]])) -> 1 | AC48: =IF(Table134[[#This Row],[Column15]]="","",(1+Table134[[#This Row],[Column15]])) ->  | AD48: =IF(Table134[[#This Row],[Column15]]="","",LN(AC48)) ->  | AK48: 47 | AL48: 1 | AM48: 0.1006913996 | AN48: 0.06779212451 | AP48: 0.1006913996 | AQ48: 1 | AR48: 1 | AS48: 1
M49: =IF(Table134[[#This Row],[Column1]]=tenure,Table134[[#This Row],[Column3]],"") ->  | O49: =N49*((1+Table134[[#This Row],[Column13]])) ->  | P49: =IF(Table134[[#This Row],[Column1]]=tenure,IF(corpnoindex<corpindex,corpnoindex,corpindex),NA()) ->  | X49: =IF(Table134[[#This Row],[Column1]]=tenure,fdcashposttax,NA()) ->  | Y49: =IF(I49<=tenure,Table134[[#This Row],[Column13]],"") ->  | AB49: =IF(Table134[[#This Row],[Column15]]="",1,(1+Table134[[#This Row],[Column15]])) -> 1 | AC49: =IF(Table134[[#This Row],[Column15]]="","",(1+Table134[[#This Row],[Column15]])) ->  | AD49: =IF(Table134[[#This Row],[Column15]]="","",LN(AC49)) ->  | AK49: 48 | AL49: 1 | AM49: -0.03221068482 | AN49: -0.03363290007 | AP49: -0.03221068482 | AQ49: 0 | AR49: 0 | AS49: 0
M50: =IF(Table134[[#This Row],[Column1]]=tenure,Table134[[#This Row],[Column3]],"") ->  | O50: =N50*((1+Table134[[#This Row],[Column13]])) ->  | P50: =IF(Table134[[#This Row],[Column1]]=tenure,IF(corpnoindex<corpindex,corpnoindex,corpindex),NA()) ->  | X50: =IF(Table134[[#This Row],[Column1]]=tenure,fdcashposttax,NA()) ->  | Y50: =IF(I50<=tenure,Table134[[#This Row],[Column13]],"") ->  | AB50: =IF(Table134[[#This Row],[Column15]]="",1,(1+Table134[[#This Row],[Column15]])) -> 1 | AC50: =IF(Table134[[#This Row],[Column15]]="","",(1+Table134[[#This Row],[Column15]])) ->  | AD50: =IF(Table134[[#This Row],[Column15]]="","",LN(AC50)) ->  | AK50: 49 | AL50: 0 | AM50: -0.0126305544 | AN50: 0.03405669706 | AP50: 0.03405669706 | AQ50: 0 | AR50: 0 | AS50: 0
M51: =IF(Table134[[#This Row],[Column1]]=tenure,Table134[[#This Row],[Column3]],"") ->  | O51: =N51*((1+Table134[[#This Row],[Column13]])) ->  | P51: =IF(Table134[[#This Row],[Column1]]=tenure,IF(corpnoindex<corpindex,corpnoindex,corpindex),NA()) ->  | X51: =IF(Table134[[#This Row],[Column1]]=tenure,fdcashposttax,NA()) ->  | Y51: =IF(I51<=tenure,Table134[[#This Row],[Column13]],"") ->  | AB51: =IF(Table134[[#This Row],[Column15]]="",1,(1+Table134[[#This Row],[Column15]])) -> 1 | AC51: =IF(Table134[[#This Row],[Column15]]="","",(1+Table134[[#This Row],[Column15]])) ->  | AD51: =IF(Table134[[#This Row],[Column15]]="","",LN(AC51)) ->  | AK51: 50 | AL51: 2 | AM51: 0.06713583893 | AN51: 0.05032379 | AP51: 0.06713583893 | AQ51: 1 | AR51: 1 | AS51: 1
M52: =IF(Table134[[#This Row],[Column1]]=tenure,Table134[[#This Row],[Column3]],"") ->  | O52: =N52*((1+Table134[[#This Row],[Column13]])) ->  | P52: =IF(Table134[[#This Row],[Column1]]=tenure,IF(corpnoindex<corpindex,corpnoindex,corpindex),NA()) ->  | X52: =IF(Table134[[#This Row],[Column1]]=tenure,fdcashposttax,NA()) ->  | Y52: =IF(I52<=tenure,Table134[[#This Row],[Column13]],"") ->  | AB52: =IF(Table134[[#This Row],[Column15]]="",1,(1+Table134[[#This Row],[Column15]])) -> 1 | AC52: =IF(Table134[[#This Row],[Column15]]="","",(1+Table134[[#This Row],[Column15]])) ->  | AD52: =IF(Table134[[#This Row],[Column15]]="","",LN(AC52)) ->  | AK52: 51 | AL52: 0 | AM52: 0.06947728328 | AN52: 0.06887479829 | AP52: 0.06947728328 | AQ52: 1 | AR52: 1 | AS52: 1
M53: =IF(Table134[[#This Row],[Column1]]=tenure,Table134[[#This Row],[Column3]],"") ->  | O53: =N53*((1+Table134[[#This Row],[Column13]])) ->  | P53: =IF(Table134[[#This Row],[Column1]]=tenure,IF(corpnoindex<corpindex,corpnoindex,corpindex),NA()) ->  | X53: =IF(Table134[[#This Row],[Column1]]=tenure,fdcashposttax,NA()) ->  | Y53: =IF(I53<=tenure,Table134[[#This Row],[Column13]],"") ->  | AB53: =IF(Table134[[#This Row],[Column15]]="",1,(1+Table134[[#This Row],[Column15]])) -> 1 | AC53: =IF(Table134[[#This Row],[Column15]]="","",(1+Table134[[#This Row],[Column15]])) ->  | AD53: =IF(Table134[[#This Row],[Column15]]="","",LN(AC53)) ->  | AK53: 52 | AL53: 1 | AM53: 0.0563896024 | AN53: 0.09641507298 | AP53: 0.09641507298 | AQ53: 1 | AR53: 1 | AS53: 1
AK54: 53 | AL54: 1 | AM54: 0.06623705136 | AN54: 0.06789600483 | AP54: 0.06789600483 | AQ54: 1 | AR54: 1 | AS54: 1
AK55: 54 | AL55: 0 | AM55: 0.07190452289 | AN55: 4.836508238e-05 | AP55: 0.07190452289 | AQ55: 1 | AR55: 1 | AS55: 1
AK56: 55 | AL56: 1 | AM56: 0.002752002526 | AN56: 0.02815321216 | AP56: 0.02815321216 | AQ56: 0 | AR56: 0 | AS56: 0
AK57: 56 | AL57: 1 | AM57: 0.04719812254 | AN57: 0.0473176639 | AP57: 0.0473176639 | AQ57: 0 | AR57: 0 | AS57: 0
AK58: 57 | AL58: 0 | AM58: 0.06318289231 | AN58: 0.08450645334 | AP58: 0.08450645334 | AQ58: 1 | AR58: 1 | AS58: 1
AK59: 58 | AL59: 1 | AM59: -0.04932908723 | AN59: 0.1400127482 | AP59: 0.1400127482 | AQ59: 1 | AR59: 1 | AS59: 1
AK60: 59 | AL60: 0 | AM60: -0.05171885191 | AN60: 0.1605662278 | AP60: 0.1605662278 | AQ60: 1 | AR60: 1 | AS60: 1
AK61: 60 | AL61: 1 | AM61: 0.0600146977 | AN61: 0.01537582443 | AP61: 0.0600146977 | AQ61: 1 | AR61: 0 | AS61: 0
AK62: 61 | AL62: 0 | AM62: 0.1387601908 | AN62: 0.1168224577 | AP62: 0.1387601908 | AQ62: 1 | AR62: 1 | AS62: 1
AK63: 62 | AL63: 1 | AM63: 0.1303323699 | AN63: 0.04266925507 | AP63: 0.1303323699 | AQ63: 1 | AR63: 1 | AS63: 1
AK64: 63 | AL64: 1 | AM64: 0.02200487915 | AN64: 0.08458637639 | AP64: 0.08458637639 | AQ64: 1 | AR64: 1 | AS64: 1
AK65: 64 | AL65: 2 | AM65: 0.03609133288 | AN65: 0.1155761785 | AP65: 0.1155761785 | AQ65: 1 | AR65: 1 | AS65: 1
AK66: 65 | AL66: 1 | AM66: 0.002809980928 | AN66: 0.006112726119 | AP66: 0.006112726119 | AQ66: =IF(MAX(AM66:AN66)>fdfy,1,0) -> 0 | AR66: =IF(MAX(AM66:AN66)>fdcash,1,0) -> 0 | AS66: 0
AK67: 66 | AL67: 2 | AM67: 0.09652887193 | AN67: -0.04820263377 | AP67: 0.09652887193 | AQ67: 1 | AR67: 1 | AS67: =IF(AQ67+AR67=2,1,0) -> 1
AK68: 67 | AL68: 0 | AM68: 0.03204439503 | AN68: 0.1035912607 | AP68: 0.1035912607 | AQ68: 1 | AR68: 1 | AS68: 1
AK69: 68 | AL69: 1 | AM69: -0.01940708249 | AN69: 0.07405898522 | AP69: 0.07405898522 | AQ69: 1 | AR69: 1 | AS69: 1
AK70: 69 | AL70: 1 | AM70: 0.06203479245 | AN70: 0.104965382 | AP70: 0.104965382 | AQ70: 1 | AR70: 1 | AS70: 1
AK71: 70 | AL71: 0 | AM71: 0.1493987405 | AN71: 0.09033319185 | AP71: 0.1493987405 | AQ71: 1 | AR71: 1 | AS71: 1
AK72: 71 | AL72: 0 | AM72: 0.03154210929 | AN72: 0.1377404698 | AP72: 0.1377404698 | AQ72: 1 | AR72: 1 | AS72: 1
AK73: 72 | AL73: 0 | AM73: 0.01626124859 | AN73: 0.1009524248 | AP73: 0.1009524248 | AQ73: 1 | AR73: 1 | AS73: 1
AK74: 73 | AL74: 1 | AM74: 0.1205634422 | AN74: 0.0225275983 | AP74: 0.1205634422 | AQ74: 1 | AR74: 1 | AS74: 1
AK75: 74 | AL75: 1 | AM75: 0.1206221075 | AN75: 0.04440077007 | AP75: 0.1206221075 | AQ75: 1 | AR75: 1 | AS75: 1
AK76: 75 | AL76: 1 | AM76: 0.1132737575 | AN76: 0.1424495485 | AP76: 0.1424495485 | AQ76: 1 | AR76: 1 | AS76: 1
AK77: 76 | AL77: 1 | AM77: 0.1043039604 | AN77: 0.02559790507 | AP77: 0.1043039604 | AQ77: 1 | AR77: 1 | AS77: 1
AK78: 77 | AL78: 1 | AM78: 0.03072459733 | AN78: 0.01750982428 | AP78: 0.03072459733 | AQ78: 0 | AR78: 0 | AS78: 0
AK79: 78 | AL79: 0 | AM79: 0.06848356951 | AN79: 0.02475847668 | AP79: 0.06848356951 | AQ79: 1 | AR79: 1 | AS79: 1
AK80: 79 | AL80: 1 | AM80: 0.1312675978 | AN80: 0.05517917636 | AP80: 0.1312675978 | AQ80: 1 | AR80: 1 | AS80: 1
AK81: 80 | AL81: 0 | AM81: 0.04699470509 | AN81: -0.02673798198 | AP81: =MAX(AM81:AN81) -> 0.04699470509 | AQ81: 0 | AR81: 0 | AS81: 0
AK82: 81 | AL82: 0 | AM82: 0.02149362397 | AN82: -0.03343158397 | AP82: 0.02149362397 | AQ82: 0 | AR82: 0 | AS82: 0
AK83: 82 | AL83: 0 | AM83: 0.1296991574 | AN83: 0.1346318349 | AP83: 0.1346318349 | AQ83: 1 | AR83: 1 | AS83: 1
AK84: 83 | AL84: 1 | AM84: 0.07180027698 | AN84: 0.1087793049 | AP84: 0.1087793049 | AQ84: 1 | AR84: 1 | AS84: 1
AK85: 84 | AL85: 0 | AM85: 0.1333817153 | AN85: 0.01246161583 | AP85: 0.1333817153 | AQ85: 1 | AR85: 1 | AS85: 1
AK86: 85 | AL86: 1 | AM86: -0.04131608174 | AN86: 0.0135293851 | AP86: 0.0135293851 | AQ86: 0 | AR86: 0 | AS86: 0
AK87: 86 | AL87: 1 | AM87: -0.02738755257 | AN87: 0.03547211684 | AP87: 0.03547211684 | AQ87: 0 | AR87: 0 | AS87: 0
AK88: 87 | AL88: 1 | AM88: 0.09243400448 | AN88: 0.04065055572 | AP88: 0.09243400448 | AQ88: 1 | AR88: 1 | AS88: 1
AK89: 88 | AL89: 1 | AM89: 0.04071936958 | AN89: 0.0704942631 | AP89: 0.0704942631 | AQ89: 1 | AR89: 1 | AS89: 1
AK90: 89 | AL90: 0 | AM90: 0.05757970722 | AN90: -0.006875736343 | AP90: 0.05757970722 | AQ90: 1 | AR90: 0 | AS90: 0
AK91: 90 | AL91: 0 | AM91: 0.1109752669 | AN91: 0.07799595114 | AP91: 0.1109752669 | AQ91: 1 | AR91: 1 | AS91: 1
AK92: 91 | AL92: 1 | AM92: 0.0008826369217 | AN92: 0.09881933999 | AP92: 0.09881933999 | AQ92: 1 | AR92: 1 | AS92: 1
AK93: 92 | AL93: 1 | AM93: 0.09670233286 | AN93: 0.05956090797 | AP93: 0.09670233286 | AQ93: 1 | AR93: 1 | AS93: 1
AK94: 93 | AL94: 0 | AM94: 0.0773745214 | AN94: 0.1048001859 | AP94: 0.1048001859 | AQ94: 1 | AR94: 1 | AS94: 1
AK95: 94 | AL95: 1 | AM95: 0.0110612665 | AN95: 0.1118800207 | AP95: 0.1118800207 | AQ95: 1 | AR95: 1 | AS95: 1
AK96: 95 | AL96: 1 | AM96: 0.07514602438 | AN96: 0.1405117057 | AP96: 0.1405117057 | AQ96: 1 | AR96: 1 | AS96: 1
AK97: 96 | AL97: 0 | AM97: 0.06914644039 | AN97: -0.0201092438 | AP97: 0.06914644039 | AQ97: 1 | AR97: 1 | AS97: 1
AK98: 97 | AL98: 1 | AM98: 0.1528146004 | AN98: 0.07410959721 | AP98: 0.1528146004 | AQ98: 1 | AR98: 1 | AS98: 1
AK99: 98 | AL99: 0 | AM99: 0.1245339109 | AN99: 0.06675527197 | AP99: 0.1245339109 | AQ99: 1 | AR99: 1 | AS99: 1
AK100: 99 | AL100: 0 | AM100: 0.1564308547 | AN100: 0.03003985484 | AP100: 0.1564308547 | AQ100: 1 | AR100: 1 | AS100: 1
AK101: 100 | AL101: 1 | AM101: 0.08194909389 | AN101: 0.05530784926 | AP101: 0.08194909389 | AQ101: 1 | AR101: 1 | AS101: 1
AK102: 101 | AL102: 0 | AM102: 0.03359046453 | AN102: -0.02082028671 | AP102: 0.03359046453 | AQ102: 0 | AR102: 0 | AS102: 0
AK103: 102 | AL103: 0 | AM103: 0.06335979859 | AN103: 0.1681983749 | AP103: 0.1681983749 | AQ103: 1 | AR103: 1 | AS103: 1
AK104: 103 | AL104: 0 | AM104: 0.1202214667 | AN104: 0.04480441452 | AP104: 0.1202214667 | AQ104: 1 | AR104: 1 | AS104: 1
AK105: 104 | AL105: 1 | AM105: -0.01829803692 | AN105: 0.06637897645 | AP105: 0.06637897645 | AQ105: 1 | AR105: 1 | AS105: 1
AK106: 105 | AL106: 0 | AM106: 0.1282765968 | AN106: 0.02952833337 | AP106: 0.1282765968 | AQ106: 1 | AR106: 1 | AS106: 1
AK107: 106 | AL107: 0 | AM107: 0.155850917 | AN107: 0.04440920549 | AP107: 0.155850917 | AQ107: 1 | AR107: 1 | AS107: 1
AK108: 107 | AL108: 0 | AM108: 0.1198826614 | AN108: 0.02322261171 | AP108: 0.1198826614 | AQ108: 1 | AR108: 1 | AS108: 1
AK109: 108 | AL109: 2 | AM109: -0.06166569637 | AN109: 0.1281207571 | AP109: 0.1281207571 | AQ109: 1 | AR109: 1 | AS109: 1
AK110: 109 | AL110: 1 | AM110: 0.0382000321 | AN110: 0.03215637512 | AP110: 0.0382000321 | AQ110: 0 | AR110: 0 | AS110: 0
AK111: 110 | AL111: 1 | AM111: 0.003377263409 | AN111: 0.1226366682 | AP111: 0.1226366682 | AQ111: 1 | AR111: 1 | AS111: 1
AK112: 111 | AL112: 0 | AM112: 0.08644799086 | AN112: 0.1416842516 | AP112: 0.1416842516 | AQ112: 1 | AR112: 1 | AS112: 1
AK113: 112 | AL113: 1 | AM113: -0.02545694694 | AN113: 0.0111003897 | AP113: 0.0111003897 | AQ113: 0 | AR113: 0 | AS113: 0
AK114: 113 | AL114: 1 | AM114: 0.04134254329 | AN114: 0.009125659256 | AP114: 0.04134254329 | AQ114: 0 | AR114: 0 | AS114: 0
AK115: 114 | AL115: 1 | AM115: 0.03304730333 | AN115: -0.00946544537 | AP115: 0.03304730333 | AQ115: 0 | AR115: 0 | AS115: 0
AK116: 115 | AL116: 0 | AM116: -0.08120763324 | AN116: 0.01007988211 | AP116: 0.01007988211 | AQ116: 0 | AR116: 0 | AS116: 0
AK117: 116 | AL117: 1 | AM117: 0.0505854601 | AN117: 0.08750096843 | AP117: 0.08750096843 | AQ117: 1 | AR117: 1 | AS117: 1
AK118: 117 | AL118: 2 | AM118: -0.02779640996 | AN118: 0.03726629504 | AP118: 0.03726629504 | AQ118: 0 | AR118: 0 | AS118: 0
AK119: 118 | AL119: 2 | AM119: 0.08487955218 | AN119: 0.01331311216 | AP119: 0.08487955218 | AQ119: 1 | AR119: 1 | AS119: 1
AK120: 119 | AL120: 2 | AM120: 0.05958020206 | AN120: 0.003106183099 | AP120: 0.05958020206 | AQ120: 1 | AR120: 0 | AS120: 0
AK121: 120 | AL121: 1 | AM121: 0.09133754339 | AN121: 0.01163621618 | AP121: 0.09133754339 | AQ121: 1 | AR121: 1 | AS121: 1
AK122: 121 | AL122: 1 | AM122: 0.05382021127 | AN122: 0.0975636449 | AP122: 0.0975636449 | AQ122: 1 | AR122: 1 | AS122: 1
AK123: 122 | AL123: 1 | AM123: 0.04038938437 | AN123: 0.1105404617 | AP123: 0.1105404617 | AQ123: 1 | AR123: 1 | AS123: 1
AK124: 123 | AL124: 1 | AM124: 0.04203503899 | AN124: 0.0115508783 | AP124: 0.04203503899 | AQ124: 0 | AR124: 0 | AS124: 0
AK125: 124 | AL125: 0 | AM125: 0.003384963782 | AN125: -0.01947204644 | AP125: 0.003384963782 | AQ125: 0 | AR125: 0 | AS125: 0
AK126: 125 | AL126: 0 | AM126: 0.1186171879 | AN126: 0.01472829729 | AP126: 0.1186171879 | AQ126: 1 | AR126: 1 | AS126: 1
AK127: 126 | AL127: 2 | AM127: -0.01321547013 | AN127: 0.06467230082 | AP127: 0.06467230082 | AQ127: 1 | AR127: 1 | AS127: 1
AK128: 127 | AL128: 0 | AM128: 0.03864205864 | AN128: -0.009516705425 | AP128: 0.03864205864 | AQ128: 0 | AR128: 0 | AS128: 0
AK129: 128 | AL129: 0 | AM129: 0.0437158052 | AN129: 0.03731534216 | AP129: 0.0437158052 | AQ129: 0 | AR129: 0 | AS129: 0
AK130: 129 | AL130: 1 | AM130: 0.03380169166 | AN130: -0.02693815031 | AP130: 0.03380169166 | AQ130: =IF(MAX(AM130:AN130)>fdfy,1,0) -> 0 | AR130: =IF(MAX(AM130:AN130)>fdcash,1,0) -> 0 | AS130: 0
AK131: 130 | AL131: 1 | AM131: 0.09627808182 | AN131: 0.0986157544 | AP131: 0.0986157544 | AQ131: 1 | AR131: 1 | AS131: =IF(AQ131+AR131=2,1,0) -> 1
AK132: 131 | AL132: 1 | AM132: 0.1420151211 | AN132: 0.1931373404 | AP132: 0.1931373404 | AQ132: 1 | AR132: 1 | AS132: 1
AK133: 132 | AL133: 1 | AM133: 0.08770748905 | AN133: 0.113331932 | AP133: 0.113331932 | AQ133: 1 | AR133: 1 | AS133: 1
AK134: 133 | AL134: 1 | AM134: 0.01952822117 | AN134: 0.09829982937 | AP134: 0.09829982937 | AQ134: 1 | AR134: 1 | AS134: 1
AK135: 134 | AL135: 0 | AM135: 0.1180305371 | AN135: 0.1181342565 | AP135: 0.1181342565 | AQ135: 1 | AR135: 1 | AS135: 1
AK136: 135 | AL136: 1 | AM136: 0.1120551709 | AN136: 0.1180063996 | AP136: 0.1180063996 | AQ136: 1 | AR136: 1 | AS136: 1
AK137: 136 | AL137: 1 | AM137: 0.08152412623 | AN137: 0.01383720047 | AP137: 0.08152412623 | AQ137: 1 | AR137: 1 | AS137: 1
AK138: 137 | AL138: 1 | AM138: 0.05551874143 | AN138: -0.003554723142 | AP138: 0.05551874143 | AQ138: 1 | AR138: 0 | AS138: 0
AK139: 138 | AL139: 1 | AM139: 0.02209147257 | AN139: 0.0965665277 | AP139: 0.0965665277 | AQ139: 1 | AR139: 1 | AS139: 1
AK140: 139 | AL140: 0 | AM140: -0.005159422054 | AN140: 0.01616436892 | AP140: 0.01616436892 | AQ140: 0 | AR140: 0 | AS140: 0
AK141: 140 | AL141: 0 | AM141: 0.006164099305 | AN141: 0.03326991042 | AP141: 0.03326991042 | AQ141: 0 | AR141: 0 | AS141: 0
AK142: 141 | AL142: 0 | AM142: 0.1343183594 | AN142: 0.09630195802 | AP142: 0.1343183594 | AQ142: 1 | AR142: 1 | AS142: 1
AK143: 142 | AL143: 0 | AM143: 0.02999825501 | AN143: -0.001643531028 | AP143: 0.02999825501 | AQ143: 0 | AR143: 0 | AS143: 0
AK144: 143 | AL144: 2 | AM144: 0.02252166736 | AN144: 0.08233649835 | AP144: 0.08233649835 | AQ144: 1 | AR144: 1 | AS144: 1
AK145: 144 | AL145: 0 | AM145: -0.07059392372 | AN145: 0.08146503793 | AP145: =MAX(AM145:AN145) -> 0.08146503793 | AQ145: 1 | AR145: 1 | AS145: 1
AK146: 145 | AL146: 1 | AM146: 0.097635867 | AN146: 0.06897073964 | AP146: 0.097635867 | AQ146: 1 | AR146: 1 | AS146: 1
AK147: 146 | AL147: 1 | AM147: 0.1566069678 | AN147: 0.003949183064 | AP147: 0.1566069678 | AQ147: 1 | AR147: 1 | AS147: 1
AK148: 147 | AL148: 1 | AM148: 0.04035596358 | AN148: 0.1029887156 | AP148: 0.1029887156 | AQ148: 1 | AR148: 1 | AS148: 1
AK149: 148 | AL149: 0 | AM149: 0.07742095409 | AN149: 0.02503793002 | AP149: 0.07742095409 | AQ149: 1 | AR149: 1 | AS149: 1
AK150: 149 | AL150: 1 | AM150: 0.0575646984 | AN150: 0.06742801199 | AP150: 0.06742801199 | AQ150: 1 | AR150: 1 | AS150: 1
AK151: 150 | AL151: 0 | AM151: 0.1069623925 | AN151: 0.0486091062 | AP151: 0.1069623925 | AQ151: 1 | AR151: 1 | AS151: 1
AK152: 151 | AL152: 1 | AM152: 0.0723605365 | AN152: 0.1408689019 | AP152: 0.1408689019 | AQ152: 1 | AR152: 1 | AS152: 1
AK153: 152 | AL153: 0 | AM153: 0.1688138655 | AN153: 0.06300554938 | AP153: 0.1688138655 | AQ153: 1 | AR153: 1 | AS153: 1
AK154: 153 | AL154: 1 | AM154: 0.1365040562 | AN154: 0.1076967706 | AP154: 0.1365040562 | AQ154: 1 | AR154: 1 | AS154: 1
AK155: 154 | AL155: 1 | AM155: 0.07133947008 | AN155: 0.03054158373 | AP155: 0.07133947008 | AQ155: 1 | AR155: 1 | AS155: 1
AK156: 155 | AL156: 0 | AM156: 0.0721160247 | AN156: 0.07449417892 | AP156: 0.07449417892 | AQ156: 1 | AR156: 1 | AS156: 1
AK157: 156 | AL157: 0 | AM157: 0.01313742263 | AN157: 0.05647282488 | AP157: 0.05647282488 | AQ157: 1 | AR157: 0 | AS157: 0
AK158: 157 | AL158: 1 | AM158: 0.1505426115 | AN158: 0.07911269822 | AP158: 0.1505426115 | AQ158: 1 | AR158: 1 | AS158: 1
AK159: 158 | AL159: 0 | AM159: 0.1488695867 | AN159: 0.007259671713 | AP159: 0.1488695867 | AQ159: 1 | AR159: 1 | AS159: 1
AK160: 159 | AL160: 1 | AM160: 0.0614545677 | AN160: 0.08241227993 | AP160: 0.08241227993 | AQ160: 1 | AR160: 1 | AS160: 1
AK161: 160 | AL161: 0 | AM161: 0.04720717485 | AN161: 0.06603479169 | AP161: 0.06603479169 | AQ161: 1 | AR161: 1 | AS161: 1
AK162: 161 | AL162: 0 | AM162: 0.0502852091 | AN162: 0.001827573265 | AP162: 0.0502852091 | AQ162: 0 | AR162: 0 | AS162: 0
AK163: 162 | AL163: 1 | AM163: 0.1397564821 | AN163: 0.1381214635 | AP163: 0.1397564821 | AQ163: 1 | AR163: 1 | AS163: 1
AK164: 163 | AL164: 2 | AM164: -0.006852219425 | AN164: 0.05887283989 | AP164: 0.05887283989 | AQ164: 1 | AR164: 0 | AS164: 0
AK165: 164 | AL165: 1 | AM165: 0.1510938429 | AN165: 0.100806367 | AP165: 0.1510938429 | AQ165: 1 | AR165: 1 | AS165: 1
AK166: 165 | AL166: 1 | AM166: 0.05657644974 | AN166: 0.1345754806 | AP166: 0.1345754806 | AQ166: 1 | AR166: 1 | AS166: 1
AK167: 166 | AL167: 0 | AM167: -0.05973516796 | AN167: 0.08626716423 | AP167: 0.08626716423 | AQ167: 1 | AR167: 1 | AS167: 1
AK168: 167 | AL168: 0 | AM168: 0.0505840527 | AN168: 0.04715030194 | AP168: 0.0505840527 | AQ168: 0 | AR168: 0 | AS168: 0
AK169: 168 | AL169: 0 | AM169: 0.1157310918 | AN169: 0.06134050395 | AP169: 0.1157310918 | AQ169: 1 | AR169: 1 | AS169: 1
AK170: 169 | AL170: 1 | AM170: 0.1667508439 | AN170: 0.07030614449 | AP170: 0.1667508439 | AQ170: 1 | AR170: 1 | AS170: 1
AK171: 170 | AL171: 1 | AM171: -0.04665744089 | AN171: 0.07903220928 | AP171: 0.07903220928 | AQ171: 1 | AR171: 1 | AS171: 1
AK172: 171 | AL172: 1 | AM172: 0.05214088738 | AN172: 0.08636795835 | AP172: 0.08636795835 | AQ172: 1 | AR172: 1 | AS172: 1
AK173: 172 | AL173: 0 | AM173: 0.07725406326 | AN173: 0.05238946445 | AP173: 0.07725406326 | AQ173: 1 | AR173: 1 | AS173: 1
AK174: 173 | AL174: 2 | AM174: 0.1747782017 | AN174: 0.05372047133 | AP174: 0.1747782017 | AQ174: 1 | AR174: 1 | AS174: 1
AK175: 174 | AL175: 0 | AM175: -0.004883297147 | AN175: 0.05358942642 | AP175: 0.05358942642 | AQ175: 0 | AR175: 0 | AS175: 0
AK176: 175 | AL176: 1 | AM176: 0.1459518663 | AN176: -0.007213253602 | AP176: 0.1459518663 | AQ176: 1 | AR176: 1 | AS176: 1
AK177: 176 | AL177: 1 | AM177: 0.1415282847 | AN177: 0.02210821513 | AP177: 0.1415282847 | AQ177: 1 | AR177: 1 | AS177: 1
AK178: 177 | AL178: 0 | AM178: 0.06934880188 | AN178: 0.05801952972 | AP178: 0.06934880188 | AQ178: 1 | AR178: 1 | AS178: 1
AK179: 178 | AL179: 1 | AM179: 0.1352471068 | AN179: 0.0717876958 | AP179: 0.1352471068 | AQ179: 1 | AR179: 1 | AS179: 1
AK180: 179 | AL180: 1 | AM180: 0.1961157736 | AN180: 0.06284667916 | AP180: 0.1961157736 | AQ180: 1 | AR180: 1 | AS180: 1
AK181: 180 | AL181: 1 | AM181: 0.0723743609 | AN181: 0.07519932431 | AP181: 0.07519932431 | AQ181: 1 | AR181: 1 | AS181: 1
AK182: 181 | AL182: 0 | AM182: 0.05716835045 | AN182: -0.1224422393 | AP182: 0.05716835045 | AQ182: 1 | AR182: 0 | AS182: 0
AK183: 182 | AL183: 2 | AM183: -0.03603632997 | AN183: 0.05973067236 | AP183: 0.05973067236 | AQ183: 1 | AR183: 0 | AS183: 0
AK184: 183 | AL184: 2 | AM184: -0.002370818313 | AN184: 0.1106558936 | AP184: 0.1106558936 | AQ184: 1 | AR184: 1 | AS184: 1
AK185: 184 | AL185: 1 | AM185: 0.1214939287 | AN185: -0.03825831959 | AP185: 0.1214939287 | AQ185: 1 | AR185: 1 | AS185: 1
AK186: 185 | AL186: 0 | AM186: 0.02020947596 | AN186: 0.0217330471 | AP186: 0.0217330471 | AQ186: 0 | AR186: 0 | AS186: 0
AK187: 186 | AL187: 1 | AM187: 0.05575447959 | AN187: 0.08833413606 | AP187: 0.08833413606 | AQ187: 1 | AR187: 1 | AS187: 1
AK188: 187 | AL188: 1 | AM188: -0.004891590667 | AN188: 0.09626392062 | AP188: 0.09626392062 | AQ188: 1 | AR188: 1 | AS188: 1
AK189: 188 | AL189: 1 | AM189: -0.01337596066 | AN189: 0.06509837024 | AP189: 0.06509837024 | AQ189: 1 | AR189: 1 | AS189: 1
AK190: 189 | AL190: 1 | AM190: 0.05701278593 | AN190: -0.01623342107 | AP190: 0.05701278593 | AQ190: 1 | AR190: 0 | AS190: 0
AK191: 190 | AL191: 1 | AM191: -0.01976597068 | AN191: 0.03906467874 | AP191: 0.03906467874 | AQ191: 0 | AR191: 0 | AS191: 0
AK192: 191 | AL192: 1 | AM192: 0.128225608 | AN192: 0.2073873825 | AP192: 0.2073873825 | AQ192: 1 | AR192: 1 | AS192: 1
AK193: 192 | AL193: 0 | AM193: 0.04710796978 | AN193: 0.09603127365 | AP193: 0.09603127365 | AQ193: 1 | AR193: 1 | AS193: 1
AK194: 193 | AL194: 0 | AM194: -0.009200630198 | AN194: 0.1035054432 | AP194: 0.1035054432 | AQ194: =IF(MAX(AM194:AN194)>fdfy,1,0) -> 1 | AR194: =IF(MAX(AM194:AN194)>fdcash,1,0) -> 1 | AS194: 1
AK195: 194 | AL195: 0 | AM195: -0.03033442011 | AN195: 0.02434111856 | AP195: 0.02434111856 | AQ195: 0 | AR195: 0 | AS195: =IF(AQ195+AR195=2,1,0) -> 0
AK196: 195 | AL196: 0 | AM196: -0.03346676095 | AN196: 0.07020604447 | AP196: 0.07020604447 | AQ196: 1 | AR196: 1 | AS196: 1
AK197: 196 | AL197: 0 | AM197: -0.004436981294 | AN197: 0.04108491462 | AP197: 0.04108491462 | AQ197: 0 | AR197: 0 | AS197: 0
AK198: 197 | AL198: 1 | AM198: 0.1208700507 | AN198: 0.01961997486 | AP198: 0.1208700507 | AQ198: 1 | AR198: 1 | AS198: 1
AK199: 198 | AL199: 1 | AM199: 0.1594464534 | AN199: -0.03639569327 | AP199: 0.1594464534 | AQ199: 1 | AR199: 1 | AS199: 1
AK200: 199 | AL200: 1 | AM200: 0.02555569215 | AN200: 0.09079004973 | AP200: 0.09079004973 | AQ200: 1 | AR200: 1 | AS200: 1
... 307 more rows
